[Event "*** Titled Tuesday Blitz"]
[Site "Chess.com"]
[Date "2020.05.05"]
[Round "9"]
[White "chito89"]
[Black "GHANDEEVAM2003"]
[Result "0-1"]
[WhiteElo "2794"]
[BlackElo "2892"]
[TimeControl "180+1"]
[EndTime "11:48:52 PDT"]
[Termination "GHANDEEVAM2003 won on time"]

1. d4 {[%clk 0:03:00.9]} 1... d5 {[%clk 0:02:59.8]} 2. c4 {[%clk 0:02:59.5]}
2... e6 {[%clk 0:02:59.6]} 3. Nf3 {[%clk 0:02:59.6]} 3... Nf6 {[%clk 0:02:59.5]}
4. g3 {[%clk 0:02:59.9]} 4... dxc4 {[%clk 0:02:59.4]} 5. Bg2 {[%clk 0:02:59.8]}
5... Bd7 {[%clk 0:03:00]} 6. Ne5 {[%clk 0:02:54.8]} 6... Bc6 {[%clk 0:03:00.3]}
7. Nxc6 {[%clk 0:02:54.6]} 7... Nxc6 {[%clk 0:03:01.2]} 8. e3 {[%clk 0:02:55]}
8... Qd7 {[%clk 0:03:01.1]} 9. O-O {[%clk 0:02:53.9]} 9... h5 {[%clk 0:03:00.9]}
10. Nd2 {[%clk 0:02:50]} 10... h4 {[%clk 0:02:57.8]} 11. Nxc4 {[%clk 0:02:48.3]}
11... Nd5 {[%clk 0:02:56.6]} 12. e4 {[%clk 0:02:22.7]} 12... Nb6 {[%clk
0:02:33.4]} 13. Nxb6 {[%clk 0:02:22.2]} 13... axb6 {[%clk 0:02:34.3]} 14. Be3
{[%clk 0:02:23.1]} 14... Be7 {[%clk 0:02:26.5]} 15. a3 {[%clk 0:02:10]} 15...
hxg3 {[%clk 0:02:26]} 16. hxg3 {[%clk 0:02:09.6]} 16... O-O-O {[%clk 0:02:15.9]}
17. Qa4 {[%clk 0:02:02.6]} 17... Kb8 {[%clk 0:02:09.3]} 18. Rfd1 {[%clk
0:02:03]} 18... Bf6 {[%clk 0:01:49.7]} 19. Qc4 {[%clk 0:01:06.9]} 19... Nxd4
{[%clk 0:01:32.5]} 20. Rac1 {[%clk 0:01:06.2]} 20... e5 {[%clk 0:01:17.2]} 21.
Bxd4 {[%clk 0:00:48.1]} 21... exd4 {[%clk 0:01:18.1]} 22. f4 {[%clk 0:00:48.5]}
22... g5 {[%clk 0:00:53.8]} 23. e5 {[%clk 0:00:47.8]} 23... Be7 {[%clk
0:00:54.1]} 24. Kf1 {[%clk 0:00:37.7]} 24... d3 {[%clk 0:00:45.4]} 25. Rc3
{[%clk 0:00:32.9]} 25... gxf4 {[%clk 0:00:34.6]} 26. Rdxd3 {[%clk 0:00:30.5]}
26... Qc8 {[%clk 0:00:28.3]} 27. gxf4 {[%clk 0:00:26.7]} 27... Rxd3 {[%clk
0:00:21.3]} 28. Rxd3 {[%clk 0:00:27.3]} 28... Qg4 {[%clk 0:00:18.7]} 29. Qe4
{[%clk 0:00:20.5]} 29... c6 {[%clk 0:00:18.5]} 30. b4 {[%clk 0:00:19]} 30... b5
{[%clk 0:00:12.9]} 31. f5 {[%clk 0:00:12.2]} 31... Qg5 {[%clk 0:00:10.2]} 32. f6
{[%clk 0:00:12.5]} 32... Bd8 {[%clk 0:00:09.3]} 33. Rd7 {[%clk 0:00:08.2]} 33...
Bc7 {[%clk 0:00:04.3]} 34. Rxf7 {[%clk 0:00:08]} 34... Rd8 {[%clk 0:00:02.9]}
35. Bf3 {[%clk 0:00:04.6]} 35... Qc1+ {[%clk 0:00:02.8]} 36. Kg2 {[%clk
0:00:05.3]} 36... Qb2+ {[%clk 0:00:03.4]} 37. Kh3 {[%clk 0:00:05.9]} 37... Rh8+
{[%clk 0:00:03.5]} 38. Rh7 {[%clk 0:00:05.5]} 38... Rxh7+ {[%clk 0:00:03.7]} 39.
Qxh7 {[%clk 0:00:06.2]} 39... Qxe5 {[%clk 0:00:04.6]} 40. Qg8+ {[%clk
0:00:04.8]} 40... Ka7 {[%clk 0:00:04.9]} 41. Qg1+ {[%clk 0:00:05.2]} 41... Bb6
{[%clk 0:00:04.7]} 42. Qg7 {[%clk 0:00:05.7]} 42... Bc7 {[%clk 0:00:04.3]} 43.
Qg1+ {[%clk 0:00:03.9]} 43... Ka6 {[%clk 0:00:04.8]} 44. Qg7 {[%clk 0:00:04.1]}
44... Qh2+ {[%clk 0:00:04.3]} 45. Kg4 {[%clk 0:00:04.8]} 45... Qg3+ {[%clk
0:00:04.6]} 46. Kf5 {[%clk 0:00:05.7]} 46... Qxf3+ {[%clk 0:00:05.1]} 47. Ke6
{[%clk 0:00:06.4]} 47... Qd5+ {[%clk 0:00:05.2]} 48. Ke7 {[%clk 0:00:06.3]}
48... Bd6+ {[%clk 0:00:05.7]} 49. Ke8 {[%clk 0:00:05.1]} 49... Qe6+ {[%clk
0:00:05.6]} 50. Kd8 {[%clk 0:00:05.6]} 50... Kb6 {[%clk 0:00:04.9]} 0-1

[Event "*** Titled Tuesday Blitz"]
[Site "Chess.com"]
[Date "2020.05.05"]
[Round "9"]
[White "RitvarsReimanis"]
[Black "StockholmMissile"]
[Result "0-1"]
[WhiteElo "2534"]
[BlackElo "2432"]
[TimeControl "180+1"]
[EndTime "11:48:52 PDT"]
[Termination "StockholmMissile won by checkmate"]

1. d4 {[%clk 0:03:00.9]} 1... d5 {[%clk 0:02:58.5]} 2. c4 {[%clk 0:03:00.9]}
2... c6 {[%clk 0:02:58.2]} 3. Nf3 {[%clk 0:02:58]} 3... Nf6 {[%clk 0:02:58]} 4.
e3 {[%clk 0:02:58.2]} 4... a6 {[%clk 0:02:57.5]} 5. Bd2 {[%clk 0:02:52.3]} 5...
e6 {[%clk 0:02:51.5]} 6. Nc3 {[%clk 0:02:51.4]} 6... Nbd7 {[%clk 0:02:50.2]} 7.
Qc2 {[%clk 0:02:43.3]} 7... dxc4 {[%clk 0:02:46.8]} 8. Bxc4 {[%clk 0:02:42.9]}
8... b5 {[%clk 0:02:46.3]} 9. Be2 {[%clk 0:02:43.1]} 9... c5 {[%clk 0:02:45.7]}
10. e4 {[%clk 0:02:30]} 10... cxd4 {[%clk 0:02:42.4]} 11. Nxd4 {[%clk
0:02:30.2]} 11... Bb7 {[%clk 0:02:42.5]} 12. f3 {[%clk 0:02:20.7]} 12... Bc5
{[%clk 0:02:41.7]} 13. Be3 {[%clk 0:02:17.2]} 13... Qb6 {[%clk 0:02:35.3]} 14.
O-O-O {[%clk 0:02:10.4]} 14... e5 {[%clk 0:02:31.5]} 15. Nf5 {[%clk 0:01:14.2]}
15... Bxe3+ {[%clk 0:02:30.3]} 16. Kb1 {[%clk 0:01:14.8]} 16... O-O {[%clk
0:02:24.1]} 17. g4 {[%clk 0:01:13.4]} 17... Rfd8 {[%clk 0:02:18.2]} 18. g5
{[%clk 0:01:11.5]} 18... Ne8 {[%clk 0:02:07.2]} 19. Ne7+ {[%clk 0:00:53.8]}
19... Kh8 {[%clk 0:02:07]} 20. Qb3 {[%clk 0:00:48.5]} 20... Qe6 {[%clk
0:01:58.2]} 21. Ned5 {[%clk 0:00:47.9]} 21... Bxd5 {[%clk 0:01:55.1]} 22. exd5
{[%clk 0:00:46.7]} 22... Qg6+ {[%clk 0:01:50.9]} 23. Bd3 {[%clk 0:00:46.7]}
23... Qxg5 {[%clk 0:01:47.9]} 24. Ne4 {[%clk 0:00:46.5]} 24... Qh6 {[%clk
0:01:46.8]} 25. Qa3 {[%clk 0:00:44]} 25... Nef6 {[%clk 0:01:42.9]} 26. Nd6
{[%clk 0:00:41.8]} 26... Rf8 {[%clk 0:01:30.8]} 27. h4 {[%clk 0:00:36.1]} 27...
Qf4 {[%clk 0:01:20.3]} 28. Be4 {[%clk 0:00:31.9]} 28... Bd4 {[%clk 0:01:04.3]}
29. Qa5 {[%clk 0:00:24.6]} 29... Bc5 {[%clk 0:00:57.9]} 30. Nb7 {[%clk
0:00:22.2]} 30... Nxe4 {[%clk 0:00:52.8]} 31. fxe4 {[%clk 0:00:22.8]} 31...
Qxe4+ {[%clk 0:00:53.4]} 32. Ka1 {[%clk 0:00:23.7]} 32... Bb6 {[%clk 0:00:50.5]}
33. Qa3 {[%clk 0:00:20.3]} 33... b4 {[%clk 0:00:46.5]} 34. Qa4 {[%clk
0:00:19.5]} 34... Nc5 {[%clk 0:00:43.8]} 35. Qc6 {[%clk 0:00:19.8]} 35... Nxb7
{[%clk 0:00:41.6]} 36. Qxb6 {[%clk 0:00:20.4]} 36... Rab8 {[%clk 0:00:41]} 37.
d6 {[%clk 0:00:20]} 37... h6 {[%clk 0:00:37.6]} 38. d7 {[%clk 0:00:19.6]} 38...
Rfd8 {[%clk 0:00:35.6]} 39. Rhf1 {[%clk 0:00:19.4]} 39... f6 {[%clk 0:00:35]}
40. Qc7 {[%clk 0:00:16]} 40... Qe3 {[%clk 0:00:28.3]} 41. Rd5 {[%clk 0:00:14.4]}
41... e4 {[%clk 0:00:12.4]} 42. Qc6 {[%clk 0:00:14.1]} 42... Qe2 {[%clk
0:00:10.6]} 43. Rdd1 {[%clk 0:00:11.6]} 43... e3 {[%clk 0:00:10.3]} 44. Rde1
{[%clk 0:00:11.9]} 44... Qd3 {[%clk 0:00:10.4]} 45. Rd1 {[%clk 0:00:12.4]} 45...
e2 {[%clk 0:00:06.9]} 46. Qc1 {[%clk 0:00:07.2]} 46... exd1=Q {[%clk 0:00:05.8]}
47. Rxd1 {[%clk 0:00:06.7]} 47... Qf5 {[%clk 0:00:06.1]} 48. Rf1 {[%clk
0:00:06.6]} 48... Qxd7 {[%clk 0:00:05.6]} 49. a3 {[%clk 0:00:06.2]} 49... Qd2
{[%clk 0:00:05.4]} 50. Qc7 {[%clk 0:00:05.5]} 50... bxa3 {[%clk 0:00:05.2]} 51.
bxa3 {[%clk 0:00:06.4]} 51... Qd4+ {[%clk 0:00:04.7]} 52. Ka2 {[%clk 0:00:07.3]}
52... Nc5 {[%clk 0:00:04.8]} 53. Qh2 {[%clk 0:00:05.1]} 53... Qc4+ {[%clk
0:00:04.7]} 54. Ka1 {[%clk 0:00:05.1]} 54... Nb3+ {[%clk 0:00:05]} 55. Ka2
{[%clk 0:00:06]} 55... Nd2+ {[%clk 0:00:05.3]} 56. Ka1 {[%clk 0:00:06.9]} 56...
Qc3+ {[%clk 0:00:05.6]} 57. Ka2 {[%clk 0:00:05.9]} 57... Qb2# {[%clk 0:00:06]}
0-1

[Event "*** Titled Tuesday Blitz"]
[Site "Chess.com"]
[Date "2020.05.05"]
[Round "9"]
[White "GasconJR"]
[Black "Alexander_Donchenko"]
[Result "1-0"]
[WhiteElo "2631"]
[BlackElo "2776"]
[TimeControl "180+1"]
[EndTime "11:48:55 PDT"]
[Termination "GasconJR won by checkmate"]

1. Nf3 {[%clk 0:03:00.9]} 1... Nf6 {[%clk 0:02:59.7]} 2. g3 {[%clk 0:03:00.6]}
2... b5 {[%clk 0:03:00]} 3. Bg2 {[%clk 0:02:59.9]} 3... Bb7 {[%clk 0:03:00.4]}
4. O-O {[%clk 0:02:59.8]} 4... e6 {[%clk 0:03:00.7]} 5. d3 {[%clk 0:02:48.5]}
5... c5 {[%clk 0:02:59.9]} 6. e4 {[%clk 0:02:47.6]} 6... d6 {[%clk 0:03:00.2]}
7. Re1 {[%clk 0:02:44.6]} 7... Be7 {[%clk 0:03:00.3]} 8. Nbd2 {[%clk 0:02:19.3]}
8... O-O {[%clk 0:02:59.8]} 9. c3 {[%clk 0:02:18.4]} 9... Nc6 {[%clk 0:02:57.8]}
10. a3 {[%clk 0:02:08.5]} 10... Qb6 {[%clk 0:02:55.9]} 11. b4 {[%clk 0:01:54.8]}
11... Rfd8 {[%clk 0:02:51]} 12. Rb1 {[%clk 0:01:51.7]} 12... a5 {[%clk
0:02:48.5]} 13. Bf1 {[%clk 0:01:03.9]} 13... axb4 {[%clk 0:02:47.3]} 14. axb4
{[%clk 0:01:03.2]} 14... cxb4 {[%clk 0:02:45.2]} 15. cxb4 {[%clk 0:01:04.1]}
15... Ng4 {[%clk 0:02:40.3]} 16. d4 {[%clk 0:01:00]} 16... d5 {[%clk 0:02:15.6]}
17. exd5 {[%clk 0:00:44.5]} 17... Rxd5 {[%clk 0:02:14.7]} 18. Qe2 {[%clk
0:00:16.2]} 18... Bxb4 {[%clk 0:01:50.5]} 19. Rd1 {[%clk 0:00:13.6]} 19... Nf6
{[%clk 0:01:16]} 20. Nb3 {[%clk 0:00:11]} 20... Bf8 {[%clk 0:01:10.6]} 21. Be3
{[%clk 0:00:08.2]} 21... b4 {[%clk 0:01:06.7]} 22. Nc5 {[%clk 0:00:08.2]} 22...
Rdd8 {[%clk 0:00:59.9]} 23. Qc2 {[%clk 0:00:08]} 23... Nd5 {[%clk 0:00:56.1]}
24. Nxb7 {[%clk 0:00:07.4]} 24... Qxb7 {[%clk 0:00:56]} 25. Ng5 {[%clk
0:00:07.8]} 25... g6 {[%clk 0:00:55.8]} 26. Bg2 {[%clk 0:00:07.7]} 26... Rac8
{[%clk 0:00:51.2]} 27. Qb3 {[%clk 0:00:07]} 27... Na5 {[%clk 0:00:48.7]} 28. Qa4
{[%clk 0:00:05.7]} 28... Nc4 {[%clk 0:00:45.2]} 29. Ne4 {[%clk 0:00:05.3]} 29...
Bg7 {[%clk 0:00:39]} 30. Bg5 {[%clk 0:00:05.2]} 30... Ra8 {[%clk 0:00:32.4]} 31.
Qb3 {[%clk 0:00:05.1]} 31... Rdc8 {[%clk 0:00:30.5]} 32. Nc5 {[%clk 0:00:03.1]}
32... Rxc5 {[%clk 0:00:09.4]} 33. dxc5 {[%clk 0:00:04]} 33... Ne5 {[%clk
0:00:07.7]} 34. Rbc1 {[%clk 0:00:03.5]} 34... Rc8 {[%clk 0:00:05.6]} 35. c6
{[%clk 0:00:03.6]} 35... Rxc6 {[%clk 0:00:04.7]} 36. Bxd5 {[%clk 0:00:03.6]}
36... exd5 {[%clk 0:00:03.8]} 37. Qxd5 {[%clk 0:00:04.1]} 37... Rxc1 {[%clk
0:00:02.2]} 38. Qxb7 {[%clk 0:00:03.4]} 38... Rxd1+ {[%clk 0:00:02]} 39. Kg2
{[%clk 0:00:04.3]} 39... h6 {[%clk 0:00:01.9]} 40. Qb8+ {[%clk 0:00:03.7]} 40...
Kh7 {[%clk 0:00:01.9]} 41. Bf4 {[%clk 0:00:04.1]} 41... Nd3 {[%clk 0:00:02.5]}
42. Qb5 {[%clk 0:00:03.8]} 42... Nxf4+ {[%clk 0:00:02.2]} 43. gxf4 {[%clk
0:00:04.7]} 43... Rb1 {[%clk 0:00:02.6]} 44. f5 {[%clk 0:00:04.8]} 44... g5
{[%clk 0:00:02.5]} 45. f6 {[%clk 0:00:04.9]} 45... Bxf6 {[%clk 0:00:02.5]} 46.
Qf5+ {[%clk 0:00:05.2]} 46... Kg7 {[%clk 0:00:03.2]} 47. Qxb1 {[%clk 0:00:05.9]}
47... Bc3 {[%clk 0:00:04]} 48. Qb3 {[%clk 0:00:06.4]} 48... h5 {[%clk 0:00:04]}
49. Kf3 {[%clk 0:00:07.3]} 49... Kg6 {[%clk 0:00:03.7]} 50. Ke4 {[%clk
0:00:07.9]} 50... Kf6 {[%clk 0:00:03.7]} 51. f3 {[%clk 0:00:08.1]} 51... Kg6
{[%clk 0:00:04]} 52. h3 {[%clk 0:00:08.6]} 52... f5+ {[%clk 0:00:03.3]} 53. Kd3
{[%clk 0:00:08.8]} 53... g4 {[%clk 0:00:03.6]} 54. fxg4 {[%clk 0:00:08.5]} 54...
fxg4 {[%clk 0:00:04]} 55. hxg4 {[%clk 0:00:09.3]} 55... hxg4 {[%clk 0:00:04.9]}
56. Ke4 {[%clk 0:00:09.7]} 56... Kg5 {[%clk 0:00:05.2]} 57. Qd5+ {[%clk
0:00:09.8]} 57... Kh4 {[%clk 0:00:05.6]} 58. Kf4 {[%clk 0:00:10]} 58... Kh3
{[%clk 0:00:03.2]} 59. Qh1# {[%clk 0:00:10.3]} 1-0

[Event "*** Titled Tuesday Blitz"]
[Site "Chess.com"]
[Date "2020.05.05"]
[Round "9"]
[White "fmshawnrl123"]
[Black "Indianlad"]
[Result "1-0"]
[WhiteElo "2719"]
[BlackElo "2894"]
[TimeControl "180+1"]
[EndTime "11:48:56 PDT"]
[Termination "fmshawnrl123 won by checkmate"]

1. c4 {[%clk 0:03:00.9]} 1... e5 {[%clk 0:02:59.4]} 2. g3 {[%clk 0:02:58.5]}
2... c6 {[%clk 0:02:59.4]} 3. d4 {[%clk 0:02:57.7]} 3... e4 {[%clk 0:02:56.7]}
4. Nc3 {[%clk 0:02:55.3]} 4... d5 {[%clk 0:02:56.5]} 5. Bg2 {[%clk 0:02:55.5]}
5... h6 {[%clk 0:02:46.8]} 6. f3 {[%clk 0:02:49.3]} 6... f6 {[%clk 0:02:11.9]}
7. fxe4 {[%clk 0:02:48]} 7... dxc4 {[%clk 0:02:09.7]} 8. Nf3 {[%clk 0:02:42.7]}
8... Bb4 {[%clk 0:02:08.6]} 9. O-O {[%clk 0:02:41.8]} 9... Ne7 {[%clk
0:02:08.9]} 10. e5 {[%clk 0:02:32.5]} 10... O-O {[%clk 0:02:08.1]} 11. exf6
{[%clk 0:02:31.6]} 11... Rxf6 {[%clk 0:02:08.1]} 12. e4 {[%clk 0:02:26.9]} 12...
Bg4 {[%clk 0:02:03.8]} 13. a3 {[%clk 0:02:17.5]} 13... Ba5 {[%clk 0:02:03.4]}
14. Be3 {[%clk 0:02:14.6]} 14... Nd7 {[%clk 0:02:00.9]} 15. h3 {[%clk 0:02:10]}
15... Bh5 {[%clk 0:01:59.9]} 16. Qe2 {[%clk 0:02:01.7]} 16... b5 {[%clk
0:01:59.6]} 17. Rae1 {[%clk 0:01:55.5]} 17... a6 {[%clk 0:01:48.6]} 18. g4
{[%clk 0:01:54.8]} 18... Bg6 {[%clk 0:01:48.3]} 19. g5 {[%clk 0:01:54.1]} 19...
hxg5 {[%clk 0:01:46.4]} 20. Bxg5 {[%clk 0:01:55]} 20... Re6 {[%clk 0:01:35.6]}
21. Qf2 {[%clk 0:01:44.4]} 21... Bb6 {[%clk 0:01:32.7]} 22. Kh1 {[%clk 0:01:35]}
22... Nf8 {[%clk 0:01:32]} 23. Qh4 {[%clk 0:01:26.4]} 23... Nh7 {[%clk
0:01:31.7]} 24. d5 {[%clk 0:01:21.1]} 24... Nxg5 {[%clk 0:01:15.1]} 25. dxe6
{[%clk 0:01:07.8]} 25... Nxe6 {[%clk 0:01:07.6]} 26. Ne5 {[%clk 0:01:05.2]}
26... Bd4 {[%clk 0:01:04]} 27. Rd1 {[%clk 0:00:59.2]} 27... c5 {[%clk
0:00:56.1]} 28. Nxg6 {[%clk 0:00:58.6]} 28... Nxg6 {[%clk 0:00:56.3]} 29. Qg4
{[%clk 0:00:59.2]} 29... Qe8 {[%clk 0:00:56.7]} 30. Nd5 {[%clk 0:00:52.4]} 30...
Rd8 {[%clk 0:00:48.5]} 31. Rf5 {[%clk 0:00:49.1]} 31... Bxb2 {[%clk 0:00:46.1]}
32. Rdf1 {[%clk 0:00:43.8]} 32... c3 {[%clk 0:00:44.4]} 33. Nf6+ {[%clk
0:00:38.8]} 33... gxf6 {[%clk 0:00:44.7]} 34. Rxf6 {[%clk 0:00:39.7]} 34... Nf8
{[%clk 0:00:31.5]} 35. Rxf8+ {[%clk 0:00:38.2]} 35... Qxf8 {[%clk 0:00:32.4]}
36. Rxf8+ {[%clk 0:00:33.6]} 36... Kxf8 {[%clk 0:00:33.3]} 37. Qxg6 {[%clk
0:00:19.3]} 37... Rd1+ {[%clk 0:00:33.8]} 38. Kh2 {[%clk 0:00:18.5]} 38... c2
{[%clk 0:00:34.7]} 39. Qf5+ {[%clk 0:00:17.2]} 39... Ke7 {[%clk 0:00:34.2]} 40.
Qxc5+ {[%clk 0:00:16.2]} 40... Ke6 {[%clk 0:00:32.8]} 41. Qc6+ {[%clk
0:00:13.6]} 41... Ke7 {[%clk 0:00:30.8]} 42. Qc7+ {[%clk 0:00:11]} 42... Kf6
{[%clk 0:00:30.8]} 43. Qc6+ {[%clk 0:00:07.9]} 43... Kf7 {[%clk 0:00:27.9]} 44.
Qc7+ {[%clk 0:00:07]} 44... Kg6 {[%clk 0:00:27.9]} 45. Qc6+ {[%clk 0:00:06.9]}
45... Kg5 {[%clk 0:00:27]} 46. h4+ {[%clk 0:00:06.8]} 46... Kxh4 {[%clk
0:00:20.1]} 47. Qh6+ {[%clk 0:00:06.2]} 47... Kg4 {[%clk 0:00:20.8]} 48. Qg6+
{[%clk 0:00:03.8]} 48... Kh4 {[%clk 0:00:17.2]} 49. Qg3+ {[%clk 0:00:02.9]}
49... Kh5 {[%clk 0:00:17.9]} 50. Bf3+ {[%clk 0:00:02.3]} 50... Kh6 {[%clk
0:00:18.6]} 51. Qf4+ {[%clk 0:00:02.2]} 51... Kg7 {[%clk 0:00:18.9]} 52. Qc7+
{[%clk 0:00:02.4]} 52... Kg6 {[%clk 0:00:19.3]} 53. Qxc2 {[%clk 0:00:03.2]}
53... Be5+ {[%clk 0:00:19.8]} 54. Kg2 {[%clk 0:00:03.6]} 54... Rd6 {[%clk
0:00:20.6]} 55. Qc8 {[%clk 0:00:03.4]} 55... Kf6 {[%clk 0:00:21.5]} 56. Qf5+
{[%clk 0:00:03.1]} 56... Ke7 {[%clk 0:00:22.4]} 57. Qxe5+ {[%clk 0:00:04]} 57...
Re6 {[%clk 0:00:23.3]} 58. Qc7+ {[%clk 0:00:03.8]} 58... Kf6 {[%clk 0:00:23.5]}
59. e5+ {[%clk 0:00:04.7]} 59... Rxe5 {[%clk 0:00:24.4]} 60. Qd8+ {[%clk
0:00:04.9]} 60... Kf5 {[%clk 0:00:24.7]} 61. Qf8+ {[%clk 0:00:03.9]} 61... Kg5
{[%clk 0:00:24.3]} 62. Kg3 {[%clk 0:00:04.2]} 62... Rf5 {[%clk 0:00:24.4]} 63.
Qg7# {[%clk 0:00:04.6]} 1-0

[Event "*** Titled Tuesday Blitz"]
[Site "Chess.com"]
[Date "2020.05.05"]
[Round "9"]
[White "Borsuk_Konstantin"]
[Black "m_ezat"]
[Result "0-1"]
[WhiteElo "2619"]
[BlackElo "2502"]
[TimeControl "180+1"]
[EndTime "11:48:56 PDT"]
[Termination "m_ezat won by resignation"]

1. d4 {[%clk 0:03:00.9]} 1... Nf6 {[%clk 0:02:55.8]} 2. c4 {[%clk 0:03:01.2]}
2... g6 {[%clk 0:02:55.4]} 3. Nc3 {[%clk 0:03:00.5]} 3... Bg7 {[%clk 0:02:55.7]}
4. e4 {[%clk 0:02:59.6]} 4... d6 {[%clk 0:02:56.2]} 5. f3 {[%clk 0:02:59.2]}
5... O-O {[%clk 0:02:56.7]} 6. Be3 {[%clk 0:02:59.8]} 6... c5 {[%clk 0:02:57.1]}
7. dxc5 {[%clk 0:02:59.7]} 7... dxc5 {[%clk 0:02:57]} 8. Qxd8 {[%clk 0:03:00.3]}
8... Rxd8 {[%clk 0:02:57.6]} 9. Bxc5 {[%clk 0:03:00.7]} 9... Nc6 {[%clk
0:02:55]} 10. Nge2 {[%clk 0:02:54.8]} 10... Nd7 {[%clk 0:02:52.7]} 11. Ba3
{[%clk 0:02:47.1]} 11... Nde5 {[%clk 0:02:51.3]} 12. Nf4 {[%clk 0:02:45.5]}
12... e6 {[%clk 0:02:35.1]} 13. Be2 {[%clk 0:02:40]} 13... Nd4 {[%clk
0:02:25.2]} 14. O-O-O {[%clk 0:02:39.3]} 14... Bh6 {[%clk 0:02:16.4]} 15. g3
{[%clk 0:02:36.6]} 15... b6 {[%clk 0:02:09.8]} 16. Be7 {[%clk 0:02:24.7]} 16...
Rd7 {[%clk 0:02:03.4]} 17. Bf6 {[%clk 0:02:13.8]} 17... Nexf3 {[%clk 0:01:26]}
18. Bxf3 {[%clk 0:01:55.6]} 18... Nxf3 {[%clk 0:01:25.5]} 19. e5 {[%clk
0:01:48.3]} 19... Bg7 {[%clk 0:01:09.7]} 20. Ne4 {[%clk 0:01:30.9]} 20... Nxe5
{[%clk 0:01:05.4]} 21. Bxe5 {[%clk 0:00:57.9]} 21... Bxe5 {[%clk 0:01:03.2]} 22.
b3 {[%clk 0:00:53.6]} 22... Rxd1+ {[%clk 0:00:58.4]} 23. Rxd1 {[%clk 0:00:52.8]}
23... Bb7 {[%clk 0:00:58.4]} 24. Nd6 {[%clk 0:00:52.7]} 24... Bc6 {[%clk
0:00:56.6]} 25. b4 {[%clk 0:00:48.5]} 25... Rd8 {[%clk 0:00:54.5]} 26. c5 {[%clk
0:00:48.6]} 26... bxc5 {[%clk 0:00:54.1]} 27. bxc5 {[%clk 0:00:48.4]} 27... Rb8
{[%clk 0:00:53.7]} 28. Nd3 {[%clk 0:00:45.7]} 28... Bd4 {[%clk 0:00:47.3]} 29.
Rf1 {[%clk 0:00:29.3]} 29... f5 {[%clk 0:00:39.5]} 30. Re1 {[%clk 0:00:24.5]}
30... Bd5 {[%clk 0:00:33]} 31. Nf4 {[%clk 0:00:19.2]} 31... Bxa2 {[%clk
0:00:20.6]} 32. Nxe6 {[%clk 0:00:15.6]} 32... Rb1+ {[%clk 0:00:19.5]} 33. Kc2
{[%clk 0:00:12.6]} 33... Rxe1 {[%clk 0:00:15.8]} 34. Nxd4 {[%clk 0:00:13]} 34...
Bd5 {[%clk 0:00:15.4]} 35. c6 {[%clk 0:00:10.1]} 35... Bxc6 {[%clk 0:00:10.9]}
36. Nxc6 {[%clk 0:00:09.3]} 36... Re6 {[%clk 0:00:11.5]} 37. Nxa7 {[%clk
0:00:02.1]} 37... Rxd6 {[%clk 0:00:04.8]} 38. Nb5 {[%clk 0:00:02.5]} 38... Re6
{[%clk 0:00:05.2]} 39. Kd3 {[%clk 0:00:02.5]} 39... Kg7 {[%clk 0:00:03.1]} 40.
Nd4 {[%clk 0:00:02.7]} 40... Re8 {[%clk 0:00:03.7]} 41. Nf3 {[%clk 0:00:02]}
41... Rd8+ {[%clk 0:00:04.3]} 42. Ke3 {[%clk 0:00:01.9]} 42... Kf6 {[%clk
0:00:05]} 43. Kf2 {[%clk 0:00:02.5]} 43... Re8 {[%clk 0:00:05.7]} 44. h4 {[%clk
0:00:03]} 44... Ra8 {[%clk 0:00:06.3]} 45. Ng1 {[%clk 0:00:02.8]} 45... Ra2+
{[%clk 0:00:07]} 46. Kf3 {[%clk 0:00:03.6]} 46... Ra3+ {[%clk 0:00:07.2]} 47.
Kf2 {[%clk 0:00:04]} 47... h6 {[%clk 0:00:07.8]} 48. Nf3 {[%clk 0:00:04.5]}
48... Ra2+ {[%clk 0:00:08.2]} 49. Ke3 {[%clk 0:00:04]} 49... Ra4 {[%clk
0:00:08.6]} 50. Kf2 {[%clk 0:00:03.8]} 50... g5 {[%clk 0:00:09]} 51. hxg5+
{[%clk 0:00:03.9]} 51... hxg5 {[%clk 0:00:09.7]} 52. Ke3 {[%clk 0:00:03.9]}
52... g4 {[%clk 0:00:09.3]} 53. Ne1 {[%clk 0:00:03.6]} 53... Ra3+ {[%clk
0:00:09.2]} 54. Kf2 {[%clk 0:00:04.1]} 54... Rc3 {[%clk 0:00:09.7]} 55. Ng2
{[%clk 0:00:04.3]} 55... Kg5 {[%clk 0:00:10.2]} 56. Nf4 {[%clk 0:00:04.4]} 56...
Rf3+ {[%clk 0:00:10.7]} 57. Kg2 {[%clk 0:00:04.9]} 57... Rxf4 {[%clk 0:00:11.1]}
58. gxf4+ {[%clk 0:00:05.8]} 58... Kxf4 {[%clk 0:00:11.5]} 0-1